bitfinex/quotes_ETHUSD_20260207
["timestamp","ask_amount","ask_price","bid_price","bid_amount"]
[1770469182936,0.002,2046.0,2045.3,3.75069395]
[1770469183144,0.002,2046.0,2045.4,0.49730683]
[1770469183544,0.002,2045.8,2045.5,1.22219506]
[1770469184847,0.002,2046.0,2045.5,1.22219506]
[1770469185142,0.002,2046.0,2045.5,4.07134776]
[1770469185528,0.002,2046.0,2045.6,2.8491527]
[1770469185853,3.00914955,2045.6,2044.4,0.001]
[1770469186016,3.00914955,2045.3,2044.4,1.22284981]
[1770469186344,3.00914955,2045.7,2044.4,4.07400251]
[1770469186849,3.00914955,2045.6,2044.4,1.22484981]
[1770469187049,1.24257604,2045.5,2044.5,0.61164644]
[1770469187440,2.46482582,2045.5,2044.6,1.22473305]
[1770469188528,3.00914955,2045.4,2044.6,0.002]
[1770469189536,1.22231457,2045.3,2044.6,0.002]
[1770469193134,2.4648182,2045.5,2044.6,0.002]
[1770469193355,0.73534279,2045.4,2044.6,0.002]
[1770469194061,4.98977971,2046.1,2044.6,0.002]
[1770469194062,1.2219561,2045.9,2044.6,2.8511527]
[1770469194436,4.23309234,2046.0,2044.6,2.8511527]
[1770469195434,4.23309234,2046.0,2044.6,2.8521527]
[1770469195635,0.002,2045.7,2044.7,4.07182595]
[1770469196254,12.42576036,2045.3,2044.6,0.001]
[1770469196454,3.00914955,2045.1,2044.2,0.001]
[1770469196640,1.29696417,2045.2,2043.5,0.001]
[1770469196641,3.00914955,2044.7,2043.5,0.001]
[1770469196851,9.41661081,2044.5,2043.5,0.001]
[1770469197160,9.41661081,2044.2,2043.6,0.002]
[1770469197360,0.94166108,2044.1,2043.5,0.001]
[1770469197538,0.94166108,2044.1,2043.5,0.003]
[1770469198348,2.16475245,2044.1,2043.5,0.003]
[1770469198862,0.94166108,2044.1,2043.5,0.003]
[1770469199038,1.22287791,2044.4,2043.5,0.003]
[1770469200168,0.1024,2044.8,2043.6,2.8491527]
[1770469200370,0.002,2045.7,2044.6,9.41661081]
[1770469200665,0.002,2045.7,2044.7,1.28640329]
[1770469200866,0.002,2045.7,2044.9,12.26576351]
[1770469201062,0.002,2045.7,2045.0,0.05438813]
[1770469201239,0.002,2045.9,2045.2,12.26576351]
[1770469201643,0.002,2045.9,2045.2,2.8491527]
[1770469201841,0.002,2046.3,2045.3,3.1884561]
[1770469202244,0.002,2046.3,2045.7,1.22207557]
[1770469202457,0.002,2046.7,2045.8,2.8491527]
[1770469202855,0.002,2046.7,2045.9,2.8491527]
[1770469203488,0.002,2046.7,2045.9,2.90354083]
[1770469203648,0.002,2046.7,2046.2,2.8491527]
[1770469203844,0.002,2046.7,2046.2,3.2991656]
[1770469204045,0.002,2046.8,2046.3,0.39562477]
[1770469204350,0.002,2046.8,2046.3,1.22171724]
[1770469205850,0.002,2046.8,2045.3,8.02790715]
[1770469206050,0.002,2046.8,2045.3,3.13883826]
[1770469206265,0.002,2046.8,2045.9,1.22194025]
[1770469206463,0.002,2046.8,2045.4,4.88898541]
[1770469206672,0.002,2046.8,2045.4,7.7429084]
[1770469206862,0.002,2046.8,2045.4,4.88898541]
[1770469207063,0.002,2046.8,2045.5,3.49353854]
[1770469207479,0.002,2046.8,2045.7,2.85392299]
[1770469207697,0.002,2046.8,2045.5,0.63961555]
[1770469208449,0.002,2046.6,2045.6,1.22213531]
[1770469208653,2.94920937,2046.6,2045.3,0.28491527]
[1770469208847,2.94720937,2046.1,2044.8,1.22260966]
[1770469209065,12.87305135,2046.5,2045.1,1.2223909]
[1770469209273,3.04960937,2046.4,2045.1,1.2223909]
[1770469209773,3.04960937,2046.4,2045.2,1.22233918]
[1770469210184,3.04960937,2046.4,2045.1,1.22240153]
[1770469210379,3.04960937,2046.4,2044.6,0.001]
[1770469210380,2.94720937,2046.1,2044.6,0.001]
[1770469210572,1.22189638,2046.0,2044.6,2.85492299]
[1770469211282,1.22177695,2046.2,2044.6,2.85492299]
[1770469211578,1.56161524,2046.3,2044.9,2.84254554]
[1770469211778,1.56161154,2046.3,2044.9,2.84254554]
[1770469211983,0.6448397,2046.2,2045.0,0.28425455]
[1770469212664,1.86664143,2046.2,2045.1,1.22243411]
[1770469212874,0.6448397,2046.2,2045.1,1.22243411]
[1770469213277,1.56161924,2046.3,2045.1,1.22243411]
[1770469214004,0.002,2046.8,2045.4,0.05438813]
[1770469214191,1.22061831,2048.2,2046.5,2.84254554]
[1770469214486,0.002,2047.6,2046.9,1.22135912]
[1770469214690,0.002,2047.6,2046.9,2.61030385]
[1770469214983,0.002,2047.5,2046.8,1.2213784]
[1770469216086,0.002,2047.5,2046.9,0.39562477]
[1770469216255,0.002,2047.9,2046.9,0.39562477]
[1770469216457,0.002,2047.6,2047.0,1.22129946]
[1770469218285,0.002,2047.5,2047.0,1.22129946]
[1770469218585,0.002,2047.5,2046.7,7.72840038]
[1770469218786,0.002,2047.5,2046.8,0.89499385]
[1770469220593,0.002,2047.4,2046.9,1.22135912]
[1770469221665,0.002,2047.3,2047.0,0.39562477]
[1770469221857,0.002,2047.3,2046.8,2.1163739]
[1770469222059,0.002,2047.2,2046.9,0.70022858]
[1770469222465,0.002,2047.4,2046.9,0.70022858]
[1770469222863,2.87104876,2047.4,2046.5,0.001]
[1770469223087,0.002,2047.4,2046.6,4.88613467]
[1770469223386,0.002,2047.4,2046.7,1.22147819]
[1770469223689,0.002,2047.4,2046.5,0.001]
[1770469223690,0.002,2047.4,2046.8,1.22141874]
[1770469223987,0.002,2047.4,2046.8,0.61074814]
[1770469224790,0.002,2047.4,2046.7,2.84254554]
[1770469224981,0.002,2047.4,2046.7,8.06790331]
[1770469225284,0.002,2047.6,2046.7,7.72798205]
[1770469228467,0.002,2047.6,2046.8,3.1824668]
[1770469228688,0.002,2047.7,2046.8,2.84254554]
[1770469228891,0.002,2047.7,2047.0,1.22129946]
[1770469229475,0.002,2047.9,2047.0,1.22129946]
[1770469229671,0.002,2047.9,2047.0,4.063845]
[1770469229871,0.002,2047.9,2047.0,1.56122072]
[1770469230174,0.002,2047.9,2046.9,1.22134635]
[1770469230378,0.002,2047.9,2047.0,0.61067829]
[1770469231091,0.002,2047.9,2047.0,1.831974]
[1770469231490,0.002,2047.9,2047.0,1.83197278]
[1770469231719,0.002,2047.9,2047.0,0.61067829]
[1770469231906,0.002,2047.9,2046.9,1.22135568]
[1770469232107,0.002,2047.9,2047.0,1.22129797]
[1770469232279,0.002,2047.9,2046.9,1.22131977]
[1770469232603,0.002,2047.9,2047.0,1.22129209]
[1770469233100,0.002,2047.9,2046.8,1.2214188]
[1770469233308,0.002,2047.9,2046.9,0.89498503]
[1770469233767,0.002,2047.9,2047.0,0.001]
[1770469234178,0.002,2047.7,2047.0,0.001]
[1770469235183,0.002,2047.7,2047.0,1.22229946]
[1770469235597,0.002,2047.7,2047.0,0.001]
[1770469235801,0.002,2047.7,2047.0,0.70138726]
[1770469237887,0.002,2047.7,2047.1,1.2212398]
[1770469238076,0.002,2047.7,2047.0,1.92264431]
[1770469238276,0.002,2047.7,2047.0,0.70138726]
[1770469238487,3.07596494,2047.7,2047.0,0.001]
[1770469238980,0.002,2047.7,2047.0,0.001]
[1770469239207,0.002,2047.7,2047.0,1.22229775]
[1770469239873,0.002,2047.7,2047.0,0.001]
[1770469242094,0.002,2047.7,2047.0,1.22229946]
[1770469242407,3.07596494,2047.7,2047.0,0.001]
[1770469242709,0.30759649,2047.6,2047.0,0.001]
[1770469243829,0.002,2047.7,2047.1,0.45612066]
[1770469243996,0.002,2047.7,2047.0,0.001]
[1770469244207,0.002,2047.7,2047.1,0.45622341]
[1770469244393,0.002,2047.7,2047.0,0.001]
[1770469244598,0.002,2047.7,2047.1,0.45647101]
[1770469244801,0.002,2047.7,2047.0,0.001]
[1770469245011,0.002,2047.7,2047.1,0.45651591]
[1770469245221,0.002,2047.7,2047.2,0.45651591]
[1770469245398,0.002,2047.7,2047.0,0.001]
[1770469245597,0.002,2047.7,2047.1,0.45662969]
[1770469245914,0.002,2047.7,2047.2,0.45662969]
[1770469246114,0.002,2047.7,2047.0,4.33828423]
[1770469246314,0.002,2047.7,2047.1,4.49495644]
[1770469246486,0.002,2047.7,2047.2,0.45662346]
[1770469246686,0.002,2047.7,2047.1,0.92234821]
[1770469246994,0.002,2047.7,2047.2,0.45775329]
[1770469247196,0.002,2047.5,2047.2,0.001]
[1770469250718,0.1044,2048.5,2047.4,3.1703729]
[1770469250922,0.1044,2048.5,2047.8,0.004]
[1770469250923,0.002,2048.5,2047.8,0.004]
[1770469251088,4.29637452,2048.5,2047.5,0.36276521]
[1770469251291,3.07396494,2048.4,2047.6,0.45678244]
[1770469251511,3.07396494,2048.4,2046.9,4.88519785]
[1770469251820,3.07396494,2048.2,2047.0,0.001]
[1770469252313,1.22064352,2048.1,2047.0,0.001]
[1770469252889,3.07396494,2048.2,2047.0,0.001]
[1770469253123,3.07396494,2048.4,2047.0,0.001]
[1770469254503,1.22243586,2048.5,2047.2,3.11698477]
[1770469254906,1.22242417,2048.5,2047.2,3.11698477]
[1770469255218,0.002,2048.5,2047.2,3.11698477]
[1770469255591,0.002,2048.5,2047.5,3.11598477]
[1770469255786,0.002,2048.5,2047.6,4.44629395]
[1770469255990,0.002,2048.5,2047.7,3.11598477]
[1770469256603,0.002,2048.5,2047.8,1.22082234]
[1770469257003,0.002,2048.5,2047.8,4.33680711]
[1770469257207,0.002,2048.5,2047.9,3.11598477]
[1770469257419,1.55357577,2049.1,2048.0,0.43368071]
[1770469257812,1.55357577,2049.1,2048.0,3.54966548]
[1770469258195,4.68192884,2049.1,2048.0,0.43368071]
[1770469258497,4.68192884,2049.1,2047.8,1.22082234]
[1770469258498,3.07396494,2049.0,2047.8,1.22082234]
[1770469259103,1.22016691,2048.9,2047.7,7.99927415]
[1770469259306,0.33347055,2049.1,2047.8,3.11598477]
[1770469259504,1.55352325,2049.1,2047.8,3.11598477]
[1770469260229,1.55352768,2049.1,2047.8,3.11598477]
[1770469260413,0.002,2048.9,2047.9,1.81863812]
[1770469260801,0.002,2048.9,2047.9,4.93462289]
[1770469261020,0.002,2048.9,2048.1,1.22064352]
[1770469261219,0.002,2048.9,2048.1,4.33662829]
[1770469261500,0.002,2048.9,2048.2,0.99928349]
[1770469262325,0.002,2048.9,2048.3,3.11598477]
[1770469262499,3.07396494,2050.4,2048.4,3.11598477]
[1770469262697,3.07396494,2050.4,2048.7,3.11598477]
[1770469262698,1.21948555,2050.1,2048.7,3.11598477]
[1770469262924,3.07396494,2049.9,2048.8,0.37558793]
[1770469263129,1.64922398,2049.8,2048.5,1.22040517]
[1770469263313,1.64919057,2049.8,2048.6,3.11598477]
[1770469263507,0.42955226,2049.8,2048.6,3.11598477]
[1770469263910,0.002,2050.0,2048.9,3.11598477]
[1770469264241,0.002,2050.0,2048.9,3.44820603]
[1770469264441,0.002,2050.0,2049.1,3.11598477]
[1770469264727,0.002,2050.0,2049.1,3.51245974]
[1770469264927,0.05438813,2049.9,2048.7,3.11598477]
[1770469265229,0.97717261,2049.9,2048.9,1.22016691]
[1770469265398,0.002,2050.0,2049.0,3.11598477]
[1770469265816,0.002,2050.0,2049.0,3.51245974]
[1770469266027,0.05438813,2049.9,2049.0,3.11598477]
[1770469266241,0.002,2050.0,2048.9,1.22016691]
[1770469266910,1.22151444,2050.0,2048.9,4.37480207]
[1770469267113,0.002,2050.0,2049.0,4.11134198]
[1770469267313,0.002,2050.0,2049.1,1.22004782]
[1770469268525,0.002,2050.0,2049.1,4.37468298]
[1770469268846,0.002,2050.0,2049.1,1.22004782]
[1770469269018,0.002,2050.0,2049.0,2.17678018]
[1770469269412,0.002,2050.0,2048.8,1.22018611]
[1770469269413,2.94080313,2049.8,2048.8,1.22018611]
[1770469269729,2.94080313,2049.8,2048.5,4.88157732]
[1770469270039,2.94080313,2049.8,2048.8,1.22022271]
[1770469270241,10.18910704,2050.0,2048.9,1.22013286]
[1770469270549,3.13045024,2049.9,2048.8,1.22022563]
[1770469270846,4.40801784,2049.8,2048.8,1.22022518]
[1770469271040,4.40801784,2049.8,2048.6,1.22030033]
[1770469271041,0.05438813,2049.6,2048.6,1.22030033]
[1770469271250,1.2198097,2049.5,2048.4,1.22046475]
[1770469271452,1.27418031,2049.6,2048.4,4.2371025]
[1770469271863,1.33195573,2049.8,2048.5,3.01663775]
[1770469272046,2.15379312,2049.7,2048.6,0.42371025]
[1770469272550,0.93407303,2049.7,2049.2,0.001]
[1770469272749,1.33195573,2049.8,2049.2,0.001]
[1770469272950,0.002,2049.8,2049.2,0.001]
[1770469274836,0.002,2049.8,2049.2,3.01763775]
[1770469275046,0.002,2049.8,2049.2,3.41411272]
[1770469275424,0.002,2049.8,2049.2,1.22096995]
[1770469275625,3.07806211,2049.8,2049.2,0.001]
[1770469275826,0.30780621,2049.7,2049.0,0.001]
[1770469276339,0.002,2049.8,2049.0,1.22106223]
[1770469276541,0.002,2049.8,2049.1,1.22001635]
[1770469276770,0.002,2049.8,2049.0,0.001]
[1770469279248,0.002,2049.8,2049.0,3.01763775]
[1770469279441,0.002,2049.8,2049.2,1.21998828]
[1770469279627,0.002,2050.0,2049.4,3.01663775]
[1770469279816,0.002,2050.0,2049.6,3.01663775]
[1770469280221,1.21867992,2051.4,2049.9,3.01663775]
[1770469280421,1.539,2051.5,2050.0,3.01663775]
[1770469280650,10.18710704,2052.1,2050.0,3.01663775]
[1770469280651,1.21826816,2052.1,2050.5,3.01663775]
[1770469280885,0.60912821,2052.0,2051.0,5.152]
[1770469281192,0.25487824,2052.7,2051.4,3.01663775]
[1770469281352,0.25487824,2052.7,2051.6,1.21856112]
[1770469281550,0.25487824,2052.7,2051.7,3.01663775]
[1770469281850,0.1373485,2052.9,2051.8,0.75344941]
[1770469281851,1.35514091,2052.9,2051.8,0.75344941]
[1770469282049,0.1373485,2052.9,2051.8,3.54806965]
[1770469282252,1.35514255,2052.9,2051.8,3.54806965]
[1770469282752,0.1373485,2052.9,2051.9,3.07102588]
[1770469282946,1.35514587,2052.9,2051.8,0.5314319]
[1770469283149,10.18710704,2052.5,2051.0,0.05438813]
[1770469283351,1.21808614,2052.4,2050.8,1.21903647]
[1770469283766,1.21808614,2052.4,2050.3,4.87730664]
[1770469283767,0.05438813,2052.3,2050.3,3.01663775]
[1770469283965,9.53575417,2052.2,2050.3,3.01663775]
[1770469284273,0.05438813,2052.3,2050.2,4.87750313]
[1770469284274,0.05438813,2052.0,2050.4,1.21926974]
[1770469284475,9.53575417,2052.0,2050.0,4.93235026]
[1770469284649,3.07606211,2052.1,2049.8,9.53575417]
[1770469284845,3.07606211,2051.5,2049.9,1.21953369]
[1770469285049,3.38366832,2051.4,2050.1,1.21944906]
[1770469285250,0.1024,2051.3,2050.0,1.21950497]
[1770469285449,4.29486086,2051.2,2049.7,1.21969068]
[1770469285882,3.07606211,2051.1,2049.7,1.21969068]
[1770469286177,3.13045024,2051.0,2049.6,1.21972781]
[1770469286360,3.17846211,2050.9,2049.6,0.60991901]
[1770469286556,3.17846211,2050.9,2049.3,0.61487432]
[1770469287177,0.1024,2050.9,2049.6,1.21973735]
[1770469287383,0.1024,2050.9,2050.2,0.001]
[1770469287570,1.21903647,2050.8,2050.2,0.001]
[1770469288085,1.21902018,2050.9,2050.2,0.001]
[1770469288450,0.62507819,2051.1,2050.2,0.001]
[1770469288656,4.29614825,2052.5,2050.3,3.07102588]
[1770469288887,3.07606211,2052.3,2050.6,0.05438813]
[1770469289192,3.07606211,2052.3,2050.3,3.07102588]
[1770469289362,3.07606211,2052.3,2050.6,9.5901423]
[1770469289571,1.21820485,2052.2,2050.7,1.21909591]
[1770469289754,0.91670864,2052.1,2050.8,1.86478715]
[1770469290391,0.91670864,2052.1,2050.8,4.8814249]
[1770469291188,3.13045024,2052.0,2050.4,1.21922927]
[1770469291493,3.13045024,2051.7,2050.1,1.21944207]
[1770469291659,3.23285024,2051.4,2050.0,0.001]
[1770469291851,0.32328502,2051.3,2050.0,0.001]
[1770469292051,3.39934713,2051.3,2050.0,0.001]
[1770469292656,0.05438813,2051.1,2050.0,0.001]
[1770469292962,3.13045024,2051.1,2050.0,0.001]
[1770469293287,0.42568502,2051.3,2050.0,0.001]
[1770469293473,0.1024,2051.2,2050.0,0.001]
[1770469293664,1.2732463,2051.1,2050.0,0.001]
[1770469293988,0.6148679,2051.0,2050.0,0.001]
[1770469295067,3.69093001,2051.0,2050.0,0.001]
[1770469295384,0.6148679,2051.0,2050.0,0.001]
[1770469295760,1.21897703,2050.9,2050.0,0.001]
[1770469297189,1.21879875,2051.2,2050.0,0.001]
[1770469298988,1.21856112,2051.6,2050.2,3.01836384]
[1770469299487,1.21838296,2051.9,2050.4,3.01836384]
[1770469299683,0.60916788,2051.8,2050.5,0.30183638]
[1770469299881,1.21850173,2051.7,2050.6,1.21915536]
[1770469300463,1.8276545,2051.8,2050.6,1.21915536]
[1770469301184,0.002,2051.4,2050.6,1.21915536]
[1770469301811,0.002,2051.4,2050.4,0.2]
[1770469301812,3.12972625,2051.3,2050.4,0.2]
[1770469301965,5.78637625,2050.8,2049.0,0.001]
[1770469302166,0.05438813,2050.4,2049.2,1.21994653]
[1770469302391,0.05438813,2050.4,2049.1,1.22104035]
[1770469302785,0.05438813,2050.4,2049.1,1.22103884]
[1770469302961,0.05438813,2050.4,2049.1,0.001]
[1770469303490,0.05438813,2050.4,2049.1,0.61127732]
[1770469304110,1.21933375,2050.3,2049.1,0.61127732]
[1770469304409,3.12972625,2050.2,2049.1,0.001]
[1770469304607,3.18411438,2050.1,2049.1,0.001]
[1770469304980,1.21933375,2050.3,2049.1,1.2210316]
[1770469305308,4.87686081,2050.5,2049.1,1.2210316]
[1770469305502,0.92258019,2050.4,2049.2,0.61022779]
[1770469306407,0.92258019,2050.4,2049.2,1.8301666]
[1770469306724,0.92258019,2050.4,2049.2,4.84853044]
[1770469306882,1.21919952,2050.6,2049.2,4.84853044]
[1770469307313,1.21897703,2050.9,2049.4,3.01836384]
[1770469308586,0.05438813,2050.7,2049.4,1.21986493]
[1770469310033,0.05438813,2050.7,2049.2,0.61022779]
[1770469310034,0.1024,2050.5,2049.2,0.61022779]
[1770469310191,0.1024,2050.5,2049.1,0.001]
[1770469310385,0.1024,2050.5,2049.2,1.21998444]
[1770469310905,1.21927428,2050.4,2049.1,1.22104782]
[1770469311716,1.27366241,2050.4,2049.1,0.001]
[1770469311888,3.23212625,2050.3,2049.1,0.001]
[1770469312215,3.28651438,2050.1,2049.1,0.001]
[1770469312445,0.05438813,2049.8,2049.1,0.001]
[1770469312584,0.1024,2049.7,2048.4,1.22042802]
[1770469312785,1.21975019,2049.6,2048.2,3.01836384]
[1770469312986,1.21975019,2049.6,2048.2,7.90067484]
[1770469313195,0.6201151,2049.5,2048.3,0.91222588]
[1770469313636,0.45057887,2050.2,2049.1,9.53642393]
[1770469313921,1.21925669,2050.5,2049.1,3.01836384]
[1770469314220,1.21925669,2050.5,2049.4,0.001]
[1770469314419,3.12972625,2050.8,2049.4,0.001]
[1770469314589,1.2189176,2051.0,2049.4,3.01936384]
[1770469314791,1.21903647,2050.8,2049.6,1.21975019]
[1770469314990,1.22103647,2050.8,2049.6,1.21975019]
[1770469315891,1.2754246,2050.8,2049.5,0.30193638]
[1770469316208,0.1024,2050.7,2049.4,1.22086914]
[1770469316805,1.21915536,2050.6,2049.4,0.001]
[1770469317021,4.97902147,2050.7,2049.4,3.01936384]
[1770469317022,1.21913911,2050.7,2049.4,3.01936384]
[1770469317208,1.21913911,2050.7,2049.4,0.001]
[1770469318720,0.05438813,2050.5,2049.4,0.001]
[1770469318921,1.21927428,2050.4,2049.4,0.001]
[1770469319130,0.61507596,2050.3,2049.4,0.001]
[1770469319349,0.05438813,2050.2,2049.4,0.001]
[1770469321125,0.05438813,2049.9,2049.4,0.001]
[1770469321319,0.05438813,2049.9,2048.1,9.53742393]
[1770469321320,0.05438813,2049.3,2048.3,0.001]
[1770469321515,0.05438813,2049.2,2048.3,0.001]
[1770469321719,0.1024,2049.1,2048.3,0.001]
[1770469322022,0.05438813,2048.7,2048.3,0.001]
[1770469322325,0.15678813,2048.7,2048.1,0.001]
[1770469322699,0.15678813,2048.7,2047.4,0.001]
[1770469323041,0.15678813,2048.7,2047.4,1.22205506]
[1770469323194,1.2203456,2048.6,2047.4,0.001]
[1770469323399,0.62585116,2048.5,2047.4,0.001]
[1770469323935,0.15678813,2048.4,2047.4,0.001]
[1770469324499,0.05438813,2048.1,2047.4,0.001]
[1770469325430,1.22070312,2048.0,2047.0,0.001]
[1770469325654,0.05438813,2047.5,2046.8,0.001]
[1770469326133,0.05438813,2047.2,2046.8,0.001]
[1770469326334,0.05438813,2047.2,2046.5,0.001]
[1770469326713,0.05438813,2046.8,2045.9,0.001]
[1770469327525,1.22147847,2046.7,2045.9,0.001]
[1770469327726,0.61616974,2046.6,2045.9,0.001]
[1770469328126,1.27581112,2046.8,2045.9,0.001]
[1770469329223,0.05438813,2046.5,2045.9,0.001]
[1770469329433,0.05438813,2046.5,2045.4,0.001]
[1770469329633,1.22183666,2046.1,2044.9,4.13945194]
[1770469329938,0.1024,2046.3,2045.0,2.9169009]
[1770469330240,0.72888733,2046.3,2045.1,3.56728962]
[1770469330640,0.05438813,2046.2,2044.7,3.15334443]
[1770469330938,0.05438813,2046.2,2044.7,4.37599268]
[1770469331140,0.05438813,2045.9,2044.7,4.37601691]
[1770469331339,0.05438813,2045.9,2044.7,4.3759772]
[1770469331540,0.05438813,2045.9,2044.7,4.3760133]
[1770469331748,1.22201583,2045.8,2044.8,0.43770133]
[1770469332118,1.32423666,2046.1,2044.8,0.43770133]
[1770469332441,1.22181329,2046.2,2044.8,3.59104576]
[1770469333046,1.27620142,2046.2,2044.8,3.59104576]
[1770469333346,0.05438813,2045.9,2044.8,3.59104576]
[1770469333523,0.05438813,2045.9,2044.6,0.001]
[1770469333730,0.05438813,2045.6,2044.6,0.001]
[1770469334529,0.1024,2045.8,2044.6,3.15434443]
[1770469334734,1.27618444,2046.2,2044.6,3.15434443]
[1770469335249,0.15678813,2046.2,2044.6,3.15434443]
[1770469335450,0.8459786,2046.2,2044.7,3.46877887]
[1770469335618,0.7435786,2046.2,2044.7,3.46877887]
[1770469335828,1.22165754,2046.4,2044.9,3.15334443]
[1770469336126,0.1024,2046.3,2044.9,3.15334443]
[1770469337223,0.1024,2046.3,2044.7,5.20588827]
[1770469337224,0.05438813,2045.9,2044.7,0.31543444]
[1770469337422,0.05438813,2045.9,2044.7,1.53810413]
[1770469337844,0.05438813,2045.9,2044.6,4.89172436]
[1770469337845,0.05438813,2045.6,2044.6,0.001]
[1770469338137,0.05438813,2045.0,2044.0,1.22304816]
[1770469338323,0.05438813,2045.0,2043.9,1.22314549]
[1770469338522,0.05438813,2044.7,2043.9,1.83474778]
[1770469338756,0.05438813,2044.7,2043.9,0.61160229]
[1770469338941,0.05438813,2045.0,2043.5,1.2243894]
[1770469339143,0.05438813,2044.7,2043.5,0.001]
[1770469339650,0.05438813,2044.4,2043.3,0.001]
[1770469339854,1.22291248,2044.3,2043.3,0.001]
[1770469340352,0.05438813,2044.1,2043.3,0.001]
[1770469341344,0.1024,2044.2,2043.3,0.001]
[1770469341525,0.72953506,2044.2,2043.3,0.001]
[1770469341721,0.62713506,2044.2,2043.3,0.001]
[1770469342051,9.76999423,2044.9,2044.0,0.001]
[1770469342052,1.27706145,2044.7,2044.0,0.001]
[1770469342255,0.1024,2044.6,2043.3,3.15434443]
[1770469342458,0.05438813,2044.4,2043.3,0.001]
[1770469343940,1.22291248,2044.3,2043.3,0.001]
[1770469344761,0.05438813,2044.1,2043.3,0.001]
[1770469346155,1.32534581,2044.3,2043.3,0.001]
[1770469346348,0.62713481,2044.2,2043.3,0.001]
[1770469347131,0.05438813,2043.6,2042.5,0.001]
[1770469347338,0.15678813,2044.1,2042.8,4.37714464]
[1770469347536,0.15678813,2044.1,2042.9,0.92723865]
[1770469348265,0.15678813,2044.1,2043.0,1.22369065]
[1770469348430,1.37982687,2044.1,2043.0,1.22369065]
[1770469348635,1.32543874,2044.1,2042.9,2.15094273]
[1770469348831,1.32543874,2044.1,2042.9,1.22370408]
[1770469349036,1.22280299,2044.5,2043.0,3.15334443]
[1770469349240,0.05438813,2043.6,2042.5,0.001]
[1770469349430,0.15678813,2043.3,2041.6,8.05130142]
[1770469349630,1.12610934,2043.3,2042.3,1.22510988]
[1770469349953,0.05438813,2043.6,2042.4,4.89614428]
[1770469350260,0.1024,2043.6,2042.5,3.15334443]
[1770469350442,0.05438813,2044.2,2042.5,3.15334443]
[1770469350645,9.41326194,2045.0,2042.9,3.15334443]
[1770469350845,0.05438813,2044.4,2042.9,3.15334443]
[1770469351040,9.59081206,2044.7,2042.9,3.15334443]
[1770469351041,9.59081206,2044.3,2043.0,0.31533444]
[1770469351338,0.1024,2044.2,2042.5,3.15334443]
[1770469351543,3.26818781,2044.2,2042.5,3.15334443]
[1770469351762,0.1024,2044.2,2042.5,3.15334443]
[1770469351939,3.26818781,2044.2,2042.5,3.15334443]
[1770469352145,0.1024,2043.9,2042.7,3.15334443]
[1770469352346,0.1024,2043.9,2042.8,0.43772747]
[1770469353159,0.1024,2043.9,2042.7,3.15334443]
[1770469353538,0.1024,2044.0,2042.7,3.15334443]
[1770469354135,1.32561166,2043.8,2042.3,3.15434443]
[1770469354555,3.16578781,2043.7,2042.3,0.001]
[1770469354861,0.1024,2043.6,2042.7,0.001]
[1770469355050,0.55153995,2043.6,2042.7,0.001]
[1770469355443,0.60592808,2043.6,2042.7,0.001]
[1770469355967,3.60814392,2043.6,2042.7,0.001]
[1770469356146,1.22357086,2043.2,2042.5,0.001]
[1770469356350,0.61722425,2043.1,2042.5,0.001]
[1770469356673,0.61722425,2043.1,2042.3,0.001]
[1770469356845,0.1024,2043.0,2041.9,0.001]
[1770469357556,0.61722425,2043.1,2042.0,3.03098125]
[1770469357756,1.22339124,2043.5,2042.0,3.03098125]
[1770469358070,1.22315181,2043.9,2042.0,3.03098125]
[1770469358266,0.1044,2044.0,2042.5,3.03098125]
[1770469358569,0.05438813,2043.9,2042.5,3.03098125]
[1770469358734,0.1024,2043.8,2042.5,3.03098125]
[1770469358938,1.37214279,2043.8,2042.6,0.30309813]
[1770469359136,0.05438813,2043.6,2042.1,7.92787081]
[1770469359336,0.15678813,2043.6,2042.1,4.2552063]
[1770469359540,0.1024,2043.4,2042.1,3.03098125]
[1770469359768,0.1024,2043.4,2042.0,1.22424668]
[1770469359966,0.1024,2043.4,2042.1,1.22422699]
[1770469360162,1.22351098,2043.3,2041.9,3.03198125]
[1770469361073,2.59542897,2043.4,2041.9,3.03198125]
[1770469361366,2.49296477,2043.8,2042.2,3.03098125]
[1770469361567,1.22322198,2043.8,2042.2,3.03098125]
[1770469361767,0.1024,2043.7,2042.2,3.03098125]
[1770469362275,1.3257056,2043.7,2042.4,3.03098125]
[1770469364046,1.3257056,2043.7,2042.0,7.92810527]
[1770469364242,1.22339124,2043.5,2042.1,2.0171042]
[1770469364442,1.27777937,2043.5,2042.1,0.79291053]
[1770469364678,0.1024,2043.4,2042.1,0.79291053]
[1770469365354,0.1024,2043.4,2042.1,2.01713706]
[1770469365573,0.1024,2043.4,2042.1,0.79291053]
[1770469365867,0.88865548,2043.4,2042.2,0.50481407]
[1770469367152,1.22351098,2043.3,2042.2,0.50481407]
[1770469367545,0.78625548,2043.4,2042.3,3.03098125]
[1770469367883,2.00971195,2043.4,2042.5,0.001]
[1770469371992,0.05438813,2043.2,2041.9,0.001]
[1770469372291,0.05438813,2043.2,2041.9,3.45762635]
[1770469372486,0.79836838,2043.3,2041.9,3.45762635]
[1770469374072,0.1024,2043.1,2041.9,3.45762635]
[1770469374760,0.1024,2043.1,2041.9,0.4266451]
[1770469374980,0.05438813,2042.9,2041.9,0.001]
[1770469376088,0.1024,2043.1,2041.9,0.001]
[1770469376792,0.1024,2042.9,2041.9,0.001]
[1770469377006,0.15678813,2042.9,2041.9,0.001]
[1770469377198,1.13396232,2042.9,2041.9,0.001]
[1770469377358,10.2397262,2042.7,2041.9,0.001]
[1770469377563,10.2397262,2042.7,2041.6,0.001]
[1770469378073,1.22393028,2042.6,2041.6,0.001]
[1770469378272,10.2397262,2042.4,2041.6,0.001]
[1770469378473,1.02397262,2042.3,2041.6,0.001]
[1770469380197,1.22417001,2042.2,2041.6,0.001]
[1770469380490,1.02397262,2042.3,2041.6,0.001]
[1770469380698,1.22411181,2042.3,2041.6,0.001]
[1770469380876,1.22411181,2042.3,2041.8,0.001]
[1770469381294,1.22411181,2042.3,2041.1,1.22478609]